[Event "Early-Titled-Tuesday-Blitz-October-24-2023"]
[Site "Chess.com"]
[Date "2023.10.24"]
[Round "10"]
[White "miraitrunks"]
[Black "Alenzer"]
[Result "1/2-1/2"]
[WhiteElo "2098"]
[BlackElo "2063"]
[TimeControl "180+1"]
[EndTime "9:52:29 PDT"]
[Termination "Game drawn - insufficient material"]

1. e4 {[%clk 0:03:00.1]} 1... c5 {[%clk 0:02:41.2]} 2. Nf3 {[%clk 0:02:59.5]}
2... e6 {[%clk 0:02:40]} 3. d4 {[%clk 0:02:59.7]} 3... cxd4 {[%clk 0:02:40.7]}
4. Nxd4 {[%clk 0:03:00.6]} 4... Nf6 {[%clk 0:02:40.8]} 5. Nc3 {[%clk 0:03:00.8]}
5... Nc6 {[%clk 0:02:41.2]} 6. Nxc6 {[%clk 0:03:01]} 6... bxc6 {[%clk
0:02:41.2]} 7. Bd3 {[%clk 0:03:01.9]} 7... d5 {[%clk 0:02:41.3]} 8. O-O {[%clk
0:03:02.5]} 8... Be7 {[%clk 0:02:38.5]} 9. Qe2 {[%clk 0:03:02.7]} 9... Qc7
{[%clk 0:02:30]} 10. Bg5 {[%clk 0:03:01]} 10... O-O {[%clk 0:02:23.1]} 11. e5
{[%clk 0:02:59]} 11... Ne8 {[%clk 0:02:22.4]} 12. Bxe7 {[%clk 0:02:59.1]} 12...
Qxe7 {[%clk 0:02:22.2]} 13. f4 {[%clk 0:02:59.5]} 13... g6 {[%clk 0:02:22.3]}
14. g4 {[%clk 0:02:59.2]} 14... f5 {[%clk 0:02:17.4]} 15. exf6 {[%clk
0:02:58.4]} 15... Nxf6 {[%clk 0:02:14.2]} 16. Rae1 {[%clk 0:02:58.9]} 16... c5
{[%clk 0:01:49.2]} 17. g5 {[%clk 0:02:56.9]} 17... Nh5 {[%clk 0:01:46.2]} 18.
Nxd5 {[%clk 0:02:56.3]} 18... Qd6 {[%clk 0:01:37.4]} 19. Nc3 {[%clk 0:02:52.4]}
19... Nxf4 {[%clk 0:01:31.7]} 20. Qe4 {[%clk 0:02:52.5]} 20... Bd7 {[%clk
0:01:19.1]} 21. Nb5 {[%clk 0:02:48.4]} 21... Nh3+ {[%clk 0:01:16.5]} 22. Kg2
{[%clk 0:02:47.7]} 22... Qb6 {[%clk 0:01:07.3]} 23. Kxh3 {[%clk 0:02:39.7]}
23... Bxb5 {[%clk 0:01:06.7]} 24. Bxb5 {[%clk 0:02:38.8]} 24... Qxb5 {[%clk
0:01:05.2]} 25. Qxe6+ {[%clk 0:02:37.3]} 25... Kh8 {[%clk 0:01:04.3]} 26. Qe7
{[%clk 0:02:36.9]} 26... Rxf1 {[%clk 0:00:49.7]} 27. Qe5+ {[%clk 0:02:27.9]}
27... Kg8 {[%clk 0:00:44.4]} 28. Qd5+ {[%clk 0:02:28]} 28... Rf7 {[%clk
0:00:42.8]} 29. Qxa8+ {[%clk 0:02:26.8]} 29... Kg7 {[%clk 0:00:43.3]} 30. Qe4
{[%clk 0:02:23.2]} 30... Qd7+ {[%clk 0:00:39.4]} 31. Kg2 {[%clk 0:02:22.8]}
31... Qd2+ {[%clk 0:00:38.4]} 32. Re2 {[%clk 0:02:22.3]} 32... Qxg5+ {[%clk
0:00:38.7]} 33. Kh3 {[%clk 0:02:21.9]} 33... Qh5+ {[%clk 0:00:37.1]} 34. Kg3
{[%clk 0:02:21.4]} 34... Qg5+ {[%clk 0:00:35.3]} 35. Kh3 {[%clk 0:02:21.6]}
35... Rf4 {[%clk 0:00:33.4]} 36. Qe7+ {[%clk 0:02:20.7]} 36... Qxe7 {[%clk
0:00:31]} 37. Rxe7+ {[%clk 0:02:21.6]} 37... Kh6 {[%clk 0:00:29.1]} 38. Rxa7
{[%clk 0:02:22.5]} 38... Rf2 {[%clk 0:00:29.1]} 39. Rb7 {[%clk 0:02:13.1]} 39...
Rxc2 {[%clk 0:00:28.9]} 40. a4 {[%clk 0:02:13]} 40... c4 {[%clk 0:00:28.1]} 41.
a5 {[%clk 0:02:13.3]} 41... c3 {[%clk 0:00:28.9]} 42. bxc3 {[%clk 0:02:12.4]}
42... Rxc3+ {[%clk 0:00:29.2]} 43. Kg4 {[%clk 0:02:13.1]} 43... Ra3 {[%clk
0:00:30.1]} 44. Ra7 {[%clk 0:02:13]} 44... Ra4+ {[%clk 0:00:29.7]} 45. Kf3
{[%clk 0:02:12.8]} 45... Kg5 {[%clk 0:00:30.5]} 46. a6 {[%clk 0:02:11.6]} 46...
h5 {[%clk 0:00:29.5]} 47. Ra8 {[%clk 0:02:12.1]} 47... Kh4 {[%clk 0:00:28.5]}
48. a7 {[%clk 0:02:11.9]} 48... g5 {[%clk 0:00:28.8]} 49. h3 {[%clk 0:02:08.6]}
49... g4+ {[%clk 0:00:26]} 50. hxg4 {[%clk 0:02:03.6]} 50... hxg4+ {[%clk
0:00:26.2]} 51. Kf2 {[%clk 0:02:03.4]} 51... Ra2+ {[%clk 0:00:25.6]} 52. Ke3
{[%clk 0:02:02.3]} 52... Kg3 {[%clk 0:00:26.2]} 53. Ke4 {[%clk 0:02:00.8]} 53...
Ra4+ {[%clk 0:00:24.2]} 54. Ke3 {[%clk 0:02:00.8]} 54... Kg2 {[%clk 0:00:23.8]}
55. Rg8 {[%clk 0:01:56.4]} 55... Rxa7 {[%clk 0:00:23.7]} 56. Rxg4+ {[%clk
0:01:56.4]} 56... Kh3 {[%clk 0:00:24.5]} 57. Rc4 {[%clk 0:01:56.2]} 57... Re7+
{[%clk 0:00:25]} 58. Kf3 {[%clk 0:01:56.5]} 58... Rf7+ {[%clk 0:00:25.5]} 59.
Ke4 {[%clk 0:01:56.9]} 59... Re7+ {[%clk 0:00:26]} 60. Kf5 {[%clk 0:01:57]}
60... Rf7+ {[%clk 0:00:26.3]} 61. Kg5 {[%clk 0:01:57.6]} 61... Rf1 {[%clk
0:00:27.2]} 62. Rc3+ {[%clk 0:01:57.5]} 62... Kg2 {[%clk 0:00:28.1]} 63. Kg4
{[%clk 0:01:57.6]} 63... Rf2 {[%clk 0:00:28.1]} 64. Rg3+ {[%clk 0:01:57.2]}
64... Kf1 {[%clk 0:00:28.9]} 65. Rf3 {[%clk 0:01:56.7]} 65... Rxf3 {[%clk
0:00:29.1]} 66. Kxf3 {[%clk 0:01:56.7]} 1/2-1/2

[Event "Early-Titled-Tuesday-Blitz-October-24-2023"]
[Site "Chess.com"]
[Date "2023.10.24"]
[Round "10"]
[White "Verony64"]
[Black "parintele_chess"]
[Result "0-1"]
[WhiteElo "2170"]
[BlackElo "2247"]
[TimeControl "180+1"]
[EndTime "9:52:30 PDT"]
[Termination "parintele_chess won by resignation"]

1. e4 {[%clk 0:03:00.9]} 1... c5 {[%clk 0:02:57.7]} 2. Nc3 {[%clk 0:03:01.2]}
2... Nc6 {[%clk 0:02:56.5]} 3. d3 {[%clk 0:03:01.8]} 3... g6 {[%clk 0:02:55.2]}
4. g3 {[%clk 0:03:02.4]} 4... Bg7 {[%clk 0:02:55.7]} 5. Bg2 {[%clk 0:03:03]}
5... e6 {[%clk 0:02:56.4]} 6. f4 {[%clk 0:03:03.7]} 6... Nge7 {[%clk 0:02:57.1]}
7. Nf3 {[%clk 0:03:04.4]} 7... O-O {[%clk 0:02:57.7]} 8. O-O {[%clk 0:03:05.1]}
8... d5 {[%clk 0:02:58.4]} 9. e5 {[%clk 0:03:04]} 9... Nf5 {[%clk 0:02:54.5]}
10. Ne2 {[%clk 0:03:01.5]} 10... b6 {[%clk 0:02:20.4]} 11. c3 {[%clk 0:02:59.3]}
11... Bb7 {[%clk 0:02:08.9]} 12. Qe1 {[%clk 0:02:49.3]} 12... h5 {[%clk
0:02:08.7]} 13. h3 {[%clk 0:02:48.8]} 13... Ba6 {[%clk 0:02:06.7]} 14. Qd1
{[%clk 0:02:24.6]} 14... d4 {[%clk 0:02:01.1]} 15. c4 {[%clk 0:02:15.7]} 15...
b5 {[%clk 0:01:49.5]} 16. b3 {[%clk 0:02:04.3]} 16... bxc4 {[%clk 0:01:44.4]}
17. bxc4 {[%clk 0:02:05.2]} 17... Rb8 {[%clk 0:01:44.7]} 18. Qa4 {[%clk
0:01:50.9]} 18... Qb6 {[%clk 0:01:34.1]} 19. Ng5 {[%clk 0:01:36.1]} 19... Nb4
{[%clk 0:01:28.6]} 20. Rd1 {[%clk 0:01:31.9]} 20... Bb7 {[%clk 0:01:18.6]} 21.
Bxb7 {[%clk 0:01:22.5]} 21... Qxb7 {[%clk 0:01:19.5]} 22. Ne4 {[%clk 0:01:19.4]}
22... Qc7 {[%clk 0:01:08.7]} 23. a3 {[%clk 0:01:10.4]} 23... Nc6 {[%clk
0:00:54.9]} 24. Kf2 {[%clk 0:00:55.4]} 24... Ne3 {[%clk 0:00:45.8]} 25. Bxe3
{[%clk 0:00:53]} 25... dxe3+ {[%clk 0:00:46.7]} 26. Kxe3 {[%clk 0:00:53.4]}
26... Nd4 {[%clk 0:00:33.3]} 27. Ra2 {[%clk 0:00:41.5]} 27... Rb3 {[%clk
0:00:18]} 28. Nxd4 {[%clk 0:00:23.9]} 28... cxd4+ {[%clk 0:00:18.9]} 29. Kf2
{[%clk 0:00:24.5]} 29... Rfb8 {[%clk 0:00:17.4]} 30. Rdd2 {[%clk 0:00:24.6]}
30... Rb1 {[%clk 0:00:16.4]} 31. Nd6 {[%clk 0:00:22.2]} 31... Bf8 {[%clk
0:00:16.1]} 32. Qxa7 {[%clk 0:00:19.7]} 32... Qxa7 {[%clk 0:00:15.1]} 0-1

[Event "Early-Titled-Tuesday-Blitz-October-24-2023"]
[Site "Chess.com"]
[Date "2023.10.24"]
[Round "10"]
[White "Mystery2007"]
[Black "UmarovSabir"]
[Result "1-0"]
[WhiteElo "2446"]
[BlackElo "2318"]
[TimeControl "180+1"]
[EndTime "9:52:31 PDT"]
[Termination "Mystery2007 won on time"]

1. Nf3 {[%clk 0:03:00.9]} 1... g6 {[%clk 0:02:57.8]} 2. c4 {[%clk 0:03:00.5]}
2... Bg7 {[%clk 0:02:58]} 3. Nc3 {[%clk 0:03:01]} 3... c6 {[%clk 0:02:58.1]} 4.
d4 {[%clk 0:03:00.2]} 4... d6 {[%clk 0:02:58.4]} 5. g3 {[%clk 0:02:59.3]} 5...
f5 {[%clk 0:02:53]} 6. Bg2 {[%clk 0:02:59.6]} 6... Nf6 {[%clk 0:02:53.5]} 7. O-O
{[%clk 0:03:00.2]} 7... O-O {[%clk 0:02:53.4]} 8. Re1 {[%clk 0:02:58.2]} 8... d5
{[%clk 0:02:51.7]} 9. Ne5 {[%clk 0:02:56.5]} 9... e6 {[%clk 0:02:51.1]} 10. b3
{[%clk 0:02:49.8]} 10... Nbd7 {[%clk 0:02:47]} 11. Nxd7 {[%clk 0:02:43.7]} 11...
Bxd7 {[%clk 0:02:45.4]} 12. Bf4 {[%clk 0:02:43.5]} 12... Ne4 {[%clk 0:02:22.9]}
13. Nxe4 {[%clk 0:02:41.6]} 13... dxe4 {[%clk 0:02:21.8]} 14. Be5 {[%clk
0:02:37]} 14... Qe7 {[%clk 0:02:11.9]} 15. e3 {[%clk 0:02:31.8]} 15... Rad8
{[%clk 0:02:10.3]} 16. Qc2 {[%clk 0:02:29.1]} 16... Bxe5 {[%clk 0:01:30.9]} 17.
dxe5 {[%clk 0:02:29.6]} 17... c5 {[%clk 0:01:31.8]} 18. Rad1 {[%clk 0:02:28.1]}
18... Bc6 {[%clk 0:01:31.9]} 19. Qc3 {[%clk 0:02:23.4]} 19... b6 {[%clk
0:01:29.4]} 20. a3 {[%clk 0:02:22.2]} 20... a5 {[%clk 0:01:28.9]} 21. h4 {[%clk
0:02:17.9]} 21... h6 {[%clk 0:01:17.7]} 22. Bf1 {[%clk 0:02:15.1]} 22... g5
{[%clk 0:01:16.6]} 23. hxg5 {[%clk 0:02:10.7]} 23... hxg5 {[%clk 0:01:17.5]} 24.
Be2 {[%clk 0:02:06.5]} 24... f4 {[%clk 0:01:08.9]} 25. Bg4 {[%clk 0:02:02.2]}
25... f3 {[%clk 0:00:56.2]} 26. Qc2 {[%clk 0:01:25.6]} 26... Kg7 {[%clk
0:00:53.7]} 27. Qb2 {[%clk 0:01:05.5]} 27... Rd3 {[%clk 0:00:40.2]} 28. Rxd3
{[%clk 0:00:57.7]} 28... exd3 {[%clk 0:00:41.1]} 29. e4 {[%clk 0:00:52]} 29...
Kg6 {[%clk 0:00:25.1]} 30. Qd2 {[%clk 0:00:49.4]} 30... Qc7 {[%clk 0:00:14.6]}
31. Qxd3 {[%clk 0:00:42.7]} 31... Qxe5 {[%clk 0:00:14.2]} 32. Bxf3 {[%clk
0:00:40.3]} 32... Qf6 {[%clk 0:00:13.2]} 33. e5+ {[%clk 0:00:39]} 1-0

[Event "Early-Titled-Tuesday-Blitz-October-24-2023"]
[Site "Chess.com"]
[Date "2023.10.24"]
[Round "10"]
[White "ural58"]
[Black "DKmirl"]
[Result "0-1"]
[WhiteElo "2493"]
[BlackElo "2304"]
[TimeControl "180+1"]
[EndTime "9:52:31 PDT"]
[Termination "DKmirl won by resignation"]

1. e4 {[%clk 0:02:56.8]} 1... c5 {[%clk 0:03:00.1]} 2. b3 {[%clk 0:02:54.8]}
2... Nc6 {[%clk 0:03:00]} 3. Bb2 {[%clk 0:02:55.3]} 3... d6 {[%clk 0:02:59.5]}
4. f4 {[%clk 0:02:55]} 4... Nf6 {[%clk 0:02:58.2]} 5. Qf3 {[%clk 0:02:54.8]}
5... e5 {[%clk 0:02:53.3]} 6. Bb5 {[%clk 0:02:53.6]} 6... Nd7 {[%clk 0:02:42.8]}
7. Bxc6 {[%clk 0:02:52.4]} 7... bxc6 {[%clk 0:02:42.5]} 8. Nc3 {[%clk
0:02:50.6]} 8... Be7 {[%clk 0:02:37.3]} 9. O-O-O {[%clk 0:02:49.6]} 9... Qa5
{[%clk 0:02:28.8]} 10. Kb1 {[%clk 0:02:48.2]} 10... c4 {[%clk 0:02:27.5]} 11.
Nge2 {[%clk 0:02:44.2]} 11... cxb3 {[%clk 0:02:26.7]} 12. cxb3 {[%clk
0:02:40.8]} 12... Ba6 {[%clk 0:02:25.4]} 13. d4 {[%clk 0:02:35.9]} 13... Bf6
{[%clk 0:01:43.8]} 14. dxe5 {[%clk 0:02:31.2]} 14... dxe5 {[%clk 0:01:42.9]} 15.
Rxd7 {[%clk 0:02:30]} 15... Kxd7 {[%clk 0:01:42.6]} 16. Rd1+ {[%clk 0:02:19.3]}
16... Ke7 {[%clk 0:01:40.7]} 17. fxe5 {[%clk 0:02:03.9]} 17... Bxe5 {[%clk
0:01:38.1]} 18. Nd4 {[%clk 0:02:03.7]} 18... Bxd4 {[%clk 0:01:31.7]} 19. Rxd4
{[%clk 0:02:04.6]} 19... Rhd8 {[%clk 0:01:25.6]} 20. Ra4 {[%clk 0:01:50.1]}
20... Qb6 {[%clk 0:01:04.8]} 21. Ba3+ {[%clk 0:01:34.3]} 21... Ke8 {[%clk
0:01:05]} 22. Qg3 {[%clk 0:01:08.2]} 22... Qg1+ {[%clk 0:00:59.4]} 23. Kc2
{[%clk 0:01:06]} 23... Bd3+ {[%clk 0:00:49.3]} 24. Kb2 {[%clk 0:01:06.1]} 24...
f6 {[%clk 0:00:32.6]} 25. e5 {[%clk 0:00:39.4]} 25... Bg6 {[%clk 0:00:22.3]} 26.
Bc5 {[%clk 0:00:35.5]} 26... Rd2+ {[%clk 0:00:21.3]} 27. Ka3 {[%clk 0:00:35.6]}
27... Qxc5+ {[%clk 0:00:20]} 28. b4 {[%clk 0:00:26.3]} 28... Qxe5 {[%clk
0:00:19.9]} 29. Qf3 {[%clk 0:00:23.6]} 29... Kf8 {[%clk 0:00:16.3]} 30. Ra5
{[%clk 0:00:22.4]} 30... Qe1 {[%clk 0:00:14.6]} 31. Rc5 {[%clk 0:00:22.1]} 31...
Qc1+ {[%clk 0:00:12.3]} 32. Ka4 {[%clk 0:00:22.2]} 32... Bc2+ {[%clk 0:00:10.9]}
33. Ka5 {[%clk 0:00:20.8]} 33... Qa3+ {[%clk 0:00:11.5]} 0-1

[Event "Early-Titled-Tuesday-Blitz-October-24-2023"]
[Site "Chess.com"]
[Date "2023.10.24"]
[Round "10"]
[White "rajesh1464"]
[Black "zverr1"]
[Result "1-0"]
[WhiteElo "2361"]
[BlackElo "2491"]
[TimeControl "180+1"]
[EndTime "9:52:36 PDT"]
[Termination "rajesh1464 won on time"]

1. d4 {[%clk 0:03:00]} 1... Nf6 {[%clk 0:02:58.4]} 2. Nc3 {[%clk 0:02:59.7]}
2... d5 {[%clk 0:02:58.4]} 3. Bf4 {[%clk 0:02:59.6]} 3... g6 {[%clk 0:02:58.7]}
4. e3 {[%clk 0:02:59.1]} 4... Bg7 {[%clk 0:02:57.8]} 5. h4 {[%clk 0:02:59.4]}
5... h6 {[%clk 0:02:56.9]} 6. Nf3 {[%clk 0:02:56.8]} 6... O-O {[%clk 0:02:56.3]}
7. Ne5 {[%clk 0:02:56.8]} 7... c6 {[%clk 0:02:51.7]} 8. Be2 {[%clk 0:02:46]}
8... b5 {[%clk 0:02:51.3]} 9. g4 {[%clk 0:02:44.6]} 9... b4 {[%clk 0:02:36.2]}
10. Na4 {[%clk 0:02:38.7]} 10... Ne4 {[%clk 0:02:34.7]} 11. f3 {[%clk
0:02:38.2]} 11... Nd6 {[%clk 0:02:34.4]} 12. Nc5 {[%clk 0:02:27.8]} 12... Qc7
{[%clk 0:02:18.2]} 13. Qd3 {[%clk 0:02:26.9]} 13... a5 {[%clk 0:01:51.5]} 14.
Kf2 {[%clk 0:02:25.1]} 14... Na6 {[%clk 0:01:45.8]} 15. Rag1 {[%clk 0:02:20.4]}
15... Bb7 {[%clk 0:00:43.1]} 16. Nxg6 {[%clk 0:02:16.8]} 16... Nxc5 {[%clk
0:00:29.1]} 17. dxc5 {[%clk 0:02:13.3]} 17... Ne4+ {[%clk 0:00:19.9]} 18. Kg2
{[%clk 0:01:28.2]} 18... e5 {[%clk 0:00:17.5]} 19. fxe4 {[%clk 0:01:20.6]} 19...
fxg6 {[%clk 0:00:11.9]} 20. Bg3 {[%clk 0:01:19]} 20... Ba6 {[%clk 0:00:12.7]}
21. Qd2 {[%clk 0:01:17.1]} 21... Bxe2 {[%clk 0:00:11]} 22. Qxe2 {[%clk 0:01:18]}
22... dxe4 {[%clk 0:00:11.4]} 23. Rf1 {[%clk 0:01:15.8]} 23... Qe7 {[%clk
0:00:06.5]} 24. Qc4+ {[%clk 0:01:14.9]} 24... Kh7 {[%clk 0:00:05.7]} 25. Qxe4
{[%clk 0:01:14.6]} 25... Qxc5 {[%clk 0:00:05.5]} 26. h5 {[%clk 0:01:13.7]} 26...
Qd6 {[%clk 0:00:04]} 27. g5 {[%clk 0:01:11.2]} 27... Rxf1 {[%clk 0:00:02.2]} 28.
Rxf1 {[%clk 0:01:01]} 28... hxg5 {[%clk 0:00:02.8]} 29. Rf7 {[%clk 0:00:55.5]}
29... Kg8 {[%clk 0:00:01.5]} 30. hxg6 {[%clk 0:00:54.7]} 30... Rf8 {[%clk
0:00:02.2]} 31. Rxg7+ {[%clk 0:00:53.7]} 31... Kxg7 {[%clk 0:00:02.3]} 32. Bxe5+
{[%clk 0:00:53.6]} 32... Qxe5 {[%clk 0:00:02.8]} 33. Qxe5+ {[%clk 0:00:53.8]}
33... Kxg6 {[%clk 0:00:03.7]} 34. Qd6+ {[%clk 0:00:54]} 34... Rf6 {[%clk
0:00:04.1]} 35. Qd3+ {[%clk 0:00:54.1]} 35... Kh5 {[%clk 0:00:03.2]} 36. Qh7+
{[%clk 0:00:53.9]} 36... Rh6 {[%clk 0:00:03.7]} 37. Qf7+ {[%clk 0:00:52.9]}
37... Rg6 {[%clk 0:00:03.5]} 38. Kg3 {[%clk 0:00:52.6]} 38... Kh6 {[%clk
0:00:03.2]} 39. e4 {[%clk 0:00:51.5]} 1-0

[Event "Early-Titled-Tuesday-Blitz-October-24-2023"]
[Site "Chess.com"]
[Date "2023.10.24"]
[Round "10"]
[White "profedechess93"]
[Black "adotand"]
[Result "0-1"]
[WhiteElo "2611"]
[BlackElo "2829"]
[TimeControl "180+1"]
[EndTime "9:52:41 PDT"]
[Termination "adotand won on time"]

1. e4 {[%clk 0:03:00.9]} 1... Nc6 {[%clk 0:02:57.5]} 2. Nf3 {[%clk 0:03:00.8]}
2... d6 {[%clk 0:02:58]} 3. d4 {[%clk 0:03:01.4]} 3... Nf6 {[%clk 0:02:58.5]} 4.
Nc3 {[%clk 0:03:01.2]} 4... g6 {[%clk 0:02:58.3]} 5. d5 {[%clk 0:03:00.3]} 5...
Nb8 {[%clk 0:02:58.5]} 6. Be3 {[%clk 0:03:00]} 6... Bg7 {[%clk 0:02:59]} 7. Qd2
{[%clk 0:03:00.6]} 7... Ng4 {[%clk 0:02:58.4]} 8. Bd4 {[%clk 0:03:00.7]} 8...
Nf6 {[%clk 0:02:57.6]} 9. O-O-O {[%clk 0:02:59.8]} 9... O-O {[%clk 0:02:55.9]}
10. h4 {[%clk 0:02:56.8]} 10... Bg4 {[%clk 0:02:55.7]} 11. Be2 {[%clk
0:02:56.1]} 11... c5 {[%clk 0:02:54.5]} 12. Be3 {[%clk 0:02:53.7]} 12... b5
{[%clk 0:02:55]} 13. Bxb5 {[%clk 0:02:40.4]} 13... Qa5 {[%clk 0:02:55.4]} 14.
Bc4 {[%clk 0:02:35.6]} 14... Nbd7 {[%clk 0:02:52.2]} 15. Bh6 {[%clk 0:02:33.8]}
15... Qb4 {[%clk 0:02:41]} 16. Bxg7 {[%clk 0:02:32.7]} 16... Kxg7 {[%clk
0:02:41.9]} 17. Bb5 {[%clk 0:01:59]} 17... Rab8 {[%clk 0:02:20.3]} 18. a3 {[%clk
0:01:58.3]} 18... Qa5 {[%clk 0:02:20.8]} 19. Bxd7 {[%clk 0:01:33.2]} 19... Nxd7
{[%clk 0:02:17.6]} 20. h5 {[%clk 0:01:10]} 20... Nf6 {[%clk 0:02:14.5]} 21. hxg6
{[%clk 0:01:09.1]} 21... fxg6 {[%clk 0:02:15.4]} 22. Qh6+ {[%clk 0:01:08.1]}
22... Kg8 {[%clk 0:02:12.8]} 23. Ng5 {[%clk 0:00:53.5]} 23... Bxd1 {[%clk
0:01:37.4]} 24. Nxh7 {[%clk 0:00:50.2]} 24... Bh5 {[%clk 0:01:37.5]} 25. Nxf6+
{[%clk 0:00:30.3]} 25... Rxf6 {[%clk 0:01:36.3]} 26. g4 {[%clk 0:00:30.6]} 26...
Qd8 {[%clk 0:01:26]} 27. gxh5 {[%clk 0:00:28.3]} 27... Qf8 {[%clk 0:01:26.4]}
28. Qg5 {[%clk 0:00:27.2]} 28... Rxf2 {[%clk 0:01:25.9]} 29. Qxg6+ {[%clk
0:00:25.1]} 29... Qg7 {[%clk 0:01:26.2]} 30. Qe6+ {[%clk 0:00:24.8]} 30... Kh8
{[%clk 0:01:24.5]} 31. Nd1 {[%clk 0:00:16.4]} 31... Rf6 {[%clk 0:01:12]} 32. Qh3
{[%clk 0:00:16.4]} 32... Qh6+ {[%clk 0:01:11.4]} 33. Kb1 {[%clk 0:00:15.8]}
33... c4 {[%clk 0:01:12.3]} 34. Ne3 {[%clk 0:00:14.1]} 34... c3 {[%clk
0:01:11.2]} 35. b3 {[%clk 0:00:14.4]} 35... Qf4 {[%clk 0:01:06.7]} 36. Ng4
{[%clk 0:00:07.7]} 36... Rf7 {[%clk 0:01:02.1]} 37. Qxc3+ {[%clk 0:00:07.4]}
37... Kh7 {[%clk 0:01:01.2]} 38. Rg1 {[%clk 0:00:07.2]} 38... Qxe4 {[%clk
0:00:59.5]} 39. Qg3 {[%clk 0:00:05.1]} 39... a5 {[%clk 0:00:49.9]} 40. h6 {[%clk
0:00:02.7]} 40... a4 {[%clk 0:00:48.3]} 0-1

[Event "Early-Titled-Tuesday-Blitz-October-24-2023"]
[Site "Chess.com"]
[Date "2023.10.24"]
[Round "10"]
[White "scarabee43"]
[Black "Szparu"]
[Result "1-0"]
[WhiteElo "2803"]
[BlackElo "2696"]
[TimeControl "180+1"]
[EndTime "9:52:42 PDT"]
[Termination "scarabee43 won by checkmate"]

1. d4 {[%clk 0:03:00.9]} 1... d5 {[%clk 0:02:53.1]} 2. c4 {[%clk 0:03:00.3]}
2... e6 {[%clk 0:02:53.1]} 3. Nf3 {[%clk 0:03:00.3]} 3... Nf6 {[%clk 0:02:53.3]}
4. Nc3 {[%clk 0:03:00.8]} 4... dxc4 {[%clk 0:02:52.7]} 5. e3 {[%clk 0:02:59.7]}
5... a6 {[%clk 0:02:51.4]} 6. a4 {[%clk 0:02:58.4]} 6... b6 {[%clk 0:02:49.7]}
7. Bxc4 {[%clk 0:02:58.4]} 7... Bb7 {[%clk 0:02:49.7]} 8. O-O {[%clk 0:02:58.2]}
8... Nbd7 {[%clk 0:02:47.8]} 9. Qe2 {[%clk 0:02:57.6]} 9... Bb4 {[%clk
0:02:45.8]} 10. Rd1 {[%clk 0:02:39.2]} 10... Qe7 {[%clk 0:02:43.8]} 11. Bd2
{[%clk 0:02:28.6]} 11... O-O {[%clk 0:02:40.5]} 12. Rac1 {[%clk 0:02:29]} 12...
c5 {[%clk 0:02:33.7]} 13. dxc5 {[%clk 0:02:09.1]} 13... Bxc5 {[%clk 0:02:34.6]}
14. Be1 {[%clk 0:02:07.9]} 14... Rfe8 {[%clk 0:02:24.4]} 15. Ba2 {[%clk
0:02:00.4]} 15... Nf8 {[%clk 0:02:23.8]} 16. Bb1 {[%clk 0:01:58.9]} 16... Ng6
{[%clk 0:02:23.8]} 17. Na2 {[%clk 0:01:58]} 17... Bd6 {[%clk 0:02:09.5]} 18. h3
{[%clk 0:01:54.9]} 18... e5 {[%clk 0:02:04]} 19. Nd2 {[%clk 0:01:46.8]} 19...
Nh4 {[%clk 0:01:31.6]} 20. f3 {[%clk 0:01:45.1]} 20... Ng6 {[%clk 0:01:32.2]}
21. Nc4 {[%clk 0:01:44.4]} 21... Bc7 {[%clk 0:01:20.1]} 22. Bb4 {[%clk 0:01:44]}
22... Qe6 {[%clk 0:01:17.7]} 23. Nd6 {[%clk 0:01:42.4]} 23... Bxd6 {[%clk
0:00:57.4]} 24. Rxd6 {[%clk 0:01:41.9]} 24... Qb3 {[%clk 0:00:52.9]} 25. Rxb6
{[%clk 0:01:40.6]} 25... Bd5 {[%clk 0:00:44.5]} 26. Nc3 {[%clk 0:01:29.8]} 26...
Bc4 {[%clk 0:00:44.2]} 27. Qf2 {[%clk 0:01:28.4]} 27... Rab8 {[%clk 0:00:40.7]}
28. Ba2 {[%clk 0:01:20.1]} 28... Rxb6 {[%clk 0:00:39.9]} 29. Bxb3 {[%clk
0:01:20.7]} 29... Rxb4 {[%clk 0:00:38.6]} 30. Bxc4 {[%clk 0:01:20.6]} 30... Rxc4
{[%clk 0:00:39.5]} 31. Qd2 {[%clk 0:01:15.3]} 31... e4 {[%clk 0:00:39.3]} 32.
fxe4 {[%clk 0:01:10.3]} 32... Nxe4 {[%clk 0:00:37.7]} 33. Nxe4 {[%clk
0:01:09.1]} 33... Rcxe4 {[%clk 0:00:38.6]} 34. b4 {[%clk 0:01:01.6]} 34... Rxe3
{[%clk 0:00:35.5]} 35. b5 {[%clk 0:00:59.2]} 35... axb5 {[%clk 0:00:35]} 36.
axb5 {[%clk 0:00:59.8]} 36... Re2 {[%clk 0:00:33.7]} 37. Qd7 {[%clk 0:00:59.8]}
37... R2e7 {[%clk 0:00:09.4]} 38. Qg4 {[%clk 0:00:54.4]} 38... Re4 {[%clk
0:00:07.7]} 39. Qd7 {[%clk 0:00:45.9]} 39... R4e7 {[%clk 0:00:07]} 40. Qd4
{[%clk 0:00:43.6]} 40... Re4 {[%clk 0:00:06.8]} 41. Qd5 {[%clk 0:00:34.5]} 41...
Nf4 {[%clk 0:00:06.8]} 42. Qxe4 {[%clk 0:00:33.8]} 42... Rxe4 {[%clk 0:00:04.4]}
43. Rc8+ {[%clk 0:00:34.1]} 43... Re8 {[%clk 0:00:03.8]} 44. Rxe8# {[%clk
0:00:34.3]} 1-0